[Event "Early-Titled-Tuesday-Blitz-September-26-2023"]
[Site "Chess.com"]
[Date "2023.09.26"]
[Round "9"]
[White "Let_it_be_1"]
[Black "kleopl"]
[Result "1-0"]
[WhiteElo "2606"]
[BlackElo "2459"]
[TimeControl "180+1"]
[EndTime "9:46:00 PDT"]
[Termination "Let_it_be_1 won by checkmate"]

1. e4 {[%clk 0:03:00.9]} 1... c5 {[%clk 0:02:59]} 2. Nf3 {[%clk 0:02:59.3]} 2...
d6 {[%clk 0:02:58.9]} 3. d4 {[%clk 0:02:59.9]} 3... cxd4 {[%clk 0:02:59.8]} 4.
Nxd4 {[%clk 0:03:00.4]} 4... Nf6 {[%clk 0:03:00.2]} 5. Nc3 {[%clk 0:03:00.6]}
5... a6 {[%clk 0:03:00.8]} 6. Be2 {[%clk 0:03:00.2]} 6... e5 {[%clk 0:03:00.6]}
7. Nb3 {[%clk 0:03:00.4]} 7... Be7 {[%clk 0:03:01]} 8. O-O {[%clk 0:03:00.4]}
8... O-O {[%clk 0:03:00.4]} 9. Kh1 {[%clk 0:03:00.8]} 9... b5 {[%clk 0:02:56.8]}
10. a4 {[%clk 0:03:00.6]} 10... b4 {[%clk 0:02:56.3]} 11. Nd5 {[%clk 0:03:00.8]}
11... Nbd7 {[%clk 0:02:54.7]} 12. Nxe7+ {[%clk 0:02:49.9]} 12... Qxe7 {[%clk
0:02:55.6]} 13. a5 {[%clk 0:02:46.9]} 13... Bb7 {[%clk 0:02:49.7]} 14. f3 {[%clk
0:02:47]} 14... d5 {[%clk 0:02:44.6]} 15. exd5 {[%clk 0:02:46.7]} 15... Nxd5
{[%clk 0:02:43.5]} 16. Qe1 {[%clk 0:02:44.9]} 16... Rac8 {[%clk 0:02:39.3]} 17.
Bd3 {[%clk 0:02:44.6]} 17... f5 {[%clk 0:02:24.3]} 18. Bd2 {[%clk 0:02:43]}
18... g6 {[%clk 0:02:14.1]} 19. Qe2 {[%clk 0:02:41.6]} 19... N7f6 {[%clk
0:02:03.5]} 20. Bg5 {[%clk 0:02:31.4]} 20... Qe6 {[%clk 0:01:37.6]} 21. Rae1
{[%clk 0:02:28.5]} 21... Rfe8 {[%clk 0:01:36.3]} 22. Qf2 {[%clk 0:02:22.1]}
22... Qd6 {[%clk 0:01:20.5]} 23. Qh4 {[%clk 0:02:14.9]} 23... Nh5 {[%clk
0:01:17.7]} 24. Bxf5 {[%clk 0:02:02.1]} 24... gxf5 {[%clk 0:01:09]} 25. Qxh5
{[%clk 0:02:02.4]} 25... Qg6 {[%clk 0:01:09.2]} 26. Qxg6+ {[%clk 0:01:56.2]}
26... hxg6 {[%clk 0:01:10.1]} 27. Rf2 {[%clk 0:01:55]} 27... Rc4 {[%clk
0:00:40.3]} 28. Nc1 {[%clk 0:01:30.2]} 28... e4 {[%clk 0:00:37.1]} 29. fxe4
{[%clk 0:01:27.6]} 29... Rcxe4 {[%clk 0:00:36.9]} 30. Rfe2 {[%clk 0:01:23.7]}
30... Rxe2 {[%clk 0:00:20.7]} 31. Rxe2 {[%clk 0:01:23.8]} 31... Rc8 {[%clk
0:00:17.9]} 32. Nd3 {[%clk 0:01:16.5]} 32... Bc6 {[%clk 0:00:15]} 33. Re6 {[%clk
0:01:03.4]} 33... Kf7 {[%clk 0:00:14.5]} 34. Rd6 {[%clk 0:01:01.9]} 34... Kg7
{[%clk 0:00:10.5]} 35. Ne5 {[%clk 0:00:54.7]} 35... Ba8 {[%clk 0:00:10.1]} 36.
Rxg6+ {[%clk 0:00:53.7]} 36... Kh7 {[%clk 0:00:10.5]} 37. Rxa6 {[%clk
0:00:49.2]} 37... Rxc2 {[%clk 0:00:09.7]} 38. Rxa8 {[%clk 0:00:47.5]} 38... Rxb2
{[%clk 0:00:09.3]} 39. Ra7+ {[%clk 0:00:44.2]} 39... Kg8 {[%clk 0:00:08.5]} 40.
h4 {[%clk 0:00:43.5]} 40... Re2 {[%clk 0:00:08.2]} 41. Nc6 {[%clk 0:00:40.6]}
41... b3 {[%clk 0:00:08.2]} 42. Ra8+ {[%clk 0:00:29]} 42... Kf7 {[%clk
0:00:07.6]} 43. Ra7+ {[%clk 0:00:28.4]} 43... Kg6 {[%clk 0:00:06.2]} 44. Kh2
{[%clk 0:00:22.6]} 44... b2 {[%clk 0:00:06.2]} 45. Rb7 {[%clk 0:00:22.7]} 45...
Kh5 {[%clk 0:00:04.3]} 46. a6 {[%clk 0:00:20.2]} 46... Nc3 {[%clk 0:00:04.2]}
47. a7 {[%clk 0:00:20]} 47... b1=Q {[%clk 0:00:02.2]} 48. Rxb1 {[%clk
0:00:19.2]} 48... Nxb1 {[%clk 0:00:03.1]} 49. a8=Q {[%clk 0:00:19.8]} 49... Kg4
{[%clk 0:00:03.1]} 50. Qg8 {[%clk 0:00:19.6]} 50... Nc3 {[%clk 0:00:02.4]} 51.
Qc4+ {[%clk 0:00:18.9]} 51... Ne4 {[%clk 0:00:02]} 52. Qxe2# {[%clk 0:00:19.1]}
1-0

[Event "Early-Titled-Tuesday-Blitz-September-26-2023"]
[Site "Chess.com"]
[Date "2023.09.26"]
[Round "9"]
[White "BeautiFullMindChess"]
[Black "WPWPWP-2015"]
[Result "1-0"]
[WhiteElo "2376"]
[BlackElo "2517"]
[TimeControl "180+1"]
[EndTime "9:46:01 PDT"]
[Termination "BeautiFullMindChess won by resignation"]

1. e4 {[%clk 0:03:00.9]} 1... c5 {[%clk 0:02:59]} 2. Nc3 {[%clk 0:03:01.2]} 2...
d6 {[%clk 0:02:57.5]} 3. d4 {[%clk 0:02:59.3]} 3... cxd4 {[%clk 0:02:56.3]} 4.
Qxd4 {[%clk 0:03:00.2]} 4... Nf6 {[%clk 0:02:55.2]} 5. b3 {[%clk 0:02:59.8]}
5... e5 {[%clk 0:02:53.8]} 6. Qd2 {[%clk 0:02:59.4]} 6... Be7 {[%clk 0:02:52.7]}
7. Bb2 {[%clk 0:02:59.6]} 7... O-O {[%clk 0:02:52.7]} 8. O-O-O {[%clk
0:02:59.5]} 8... Be6 {[%clk 0:02:51]} 9. f3 {[%clk 0:02:59.3]} 9... a5 {[%clk
0:02:47.8]} 10. Bb5 {[%clk 0:02:56.6]} 10... a4 {[%clk 0:02:45.6]} 11. Bxa4
{[%clk 0:02:46.6]} 11... b5 {[%clk 0:02:44]} 12. Bxb5 {[%clk 0:02:46]} 12...
Nbd7 {[%clk 0:02:27.5]} 13. Kb1 {[%clk 0:02:43.1]} 13... Nb6 {[%clk 0:02:20.1]}
14. a4 {[%clk 0:02:25]} 14... Kh8 {[%clk 0:02:19.3]} 15. g4 {[%clk 0:02:21.7]}
15... Qc7 {[%clk 0:02:02.4]} 16. g5 {[%clk 0:01:57.6]} 16... Nfd7 {[%clk
0:01:59]} 17. Nge2 {[%clk 0:01:56.4]} 17... Nc5 {[%clk 0:01:52.6]} 18. h4 {[%clk
0:01:52.4]} 18... f5 {[%clk 0:01:45.3]} 19. gxf6 {[%clk 0:00:51]} 19... Rxf6
{[%clk 0:01:44]} 20. f4 {[%clk 0:00:50.2]} 20... Bg4 {[%clk 0:01:27.6]} 21. fxe5
{[%clk 0:00:40.4]} 21... dxe5 {[%clk 0:01:27.3]} 22. Nd5 {[%clk 0:00:39.7]}
22... Nxd5 {[%clk 0:01:18.2]} 23. exd5 {[%clk 0:00:40.6]} 23... Bd6 {[%clk
0:01:07.3]} 24. Rdf1 {[%clk 0:00:36.2]} 24... Raf8 {[%clk 0:01:01.1]} 25. Rxf6
{[%clk 0:00:35.7]} 25... Rxf6 {[%clk 0:01:01]} 26. Rg1 {[%clk 0:00:35.3]} 26...
h5 {[%clk 0:00:57.3]} 27. Ng3 {[%clk 0:00:24.8]} 27... Qb6 {[%clk 0:00:33.2]}
28. b4 {[%clk 0:00:18.7]} 28... Ne4 {[%clk 0:00:29.8]} 29. Nxe4 {[%clk
0:00:17.6]} 29... Qxg1+ {[%clk 0:00:29.6]} 30. Ka2 {[%clk 0:00:18.5]} 30... Rg6
{[%clk 0:00:15.2]} 31. Nxd6 {[%clk 0:00:18.3]} 31... Rxd6 {[%clk 0:00:15.8]} 32.
Bxe5 {[%clk 0:00:18.9]} 32... Rg6 {[%clk 0:00:14.7]} 33. Bd3 {[%clk 0:00:17.2]}
33... Rb6 {[%clk 0:00:07]} 34. a5 {[%clk 0:00:15.7]} 34... Rb7 {[%clk
0:00:05.1]} 35. Qh6+ {[%clk 0:00:15.3]} 35... Kg8 {[%clk 0:00:03.7]} 36. Qg5
{[%clk 0:00:14.9]} 36... Rd7 {[%clk 0:00:03]} 37. d6 {[%clk 0:00:14.5]} 37...
Qg2 {[%clk 0:00:02.2]} 38. Bc4+ {[%clk 0:00:14.2]} 38... Kh7 {[%clk 0:00:02.6]}
39. Bd3+ {[%clk 0:00:13.2]} 39... Kg8 {[%clk 0:00:02.8]} 40. Kb2 {[%clk
0:00:12.5]} 40... Qd5 {[%clk 0:00:02.3]} 41. Qf4 {[%clk 0:00:12]} 41... Qe6
{[%clk 0:00:02.1]} 42. Bc4 {[%clk 0:00:12.1]} 42... Rf7 {[%clk 0:00:02.3]} 43.
Bxe6 {[%clk 0:00:11.3]} 43... Bxe6 {[%clk 0:00:03.2]} 44. Qg5 {[%clk 0:00:11.4]}
44... Kh7 {[%clk 0:00:02.9]} 45. c4 {[%clk 0:00:10]} 45... Rf4 {[%clk
0:00:02.7]} 46. Qxf4 {[%clk 0:00:09.8]} 46... Kg6 {[%clk 0:00:02.7]} 47. Qg5+
{[%clk 0:00:09.8]} 47... Kf7 {[%clk 0:00:02.8]} 48. Qxg7+ {[%clk 0:00:09.8]} 1-0

[Event "Early-Titled-Tuesday-Blitz-September-26-2023"]
[Site "Chess.com"]
[Date "2023.09.26"]
[Round "9"]
[White "h4parah5"]
[Black "remi04"]
[Result "1/2-1/2"]
[WhiteElo "2957"]
[BlackElo "2842"]
[TimeControl "180+1"]
[EndTime "9:46:09 PDT"]
[Termination "Game drawn - insufficient material"]

1. Nf3 {[%clk 0:03:00.9]} 1... d5 {[%clk 0:02:59.3]} 2. e3 {[%clk 0:02:57.9]}
2... Nf6 {[%clk 0:02:59]} 3. c4 {[%clk 0:02:58.3]} 3... e6 {[%clk 0:02:59.6]} 4.
b3 {[%clk 0:02:58.8]} 4... b6 {[%clk 0:02:57.8]} 5. Bb2 {[%clk 0:02:59.2]} 5...
Bb7 {[%clk 0:02:57]} 6. Nc3 {[%clk 0:02:59.6]} 6... Nbd7 {[%clk 0:02:56.6]} 7.
Rc1 {[%clk 0:03:00]} 7... a6 {[%clk 0:02:55.7]} 8. cxd5 {[%clk 0:02:59.6]} 8...
exd5 {[%clk 0:02:56.6]} 9. Ne2 {[%clk 0:02:59.8]} 9... Bd6 {[%clk 0:02:45.7]}
10. Ng3 {[%clk 0:02:59.2]} 10... g6 {[%clk 0:02:46]} 11. Bd3 {[%clk 0:02:48.9]}
11... Qe7 {[%clk 0:02:44.4]} 12. Qc2 {[%clk 0:02:43.8]} 12... c5 {[%clk
0:02:29]} 13. O-O {[%clk 0:02:39.9]} 13... O-O {[%clk 0:02:18.2]} 14. Be2 {[%clk
0:02:36.9]} 14... Rac8 {[%clk 0:02:02.9]} 15. Qb1 {[%clk 0:02:35.8]} 15... Ne5
{[%clk 0:01:57.1]} 16. d4 {[%clk 0:02:31.5]} 16... Nxf3+ {[%clk 0:01:37.6]} 17.
Bxf3 {[%clk 0:02:32.4]} 17... c4 {[%clk 0:01:37.5]} 18. bxc4 {[%clk 0:02:30.8]}
18... dxc4 {[%clk 0:01:38]} 19. e4 {[%clk 0:01:33.3]} 19... Bxg3 {[%clk
0:01:30.9]} 20. hxg3 {[%clk 0:01:27.9]} 20... Bxe4 {[%clk 0:01:28.6]} 21. Rfe1
{[%clk 0:01:27.5]} 21... Bxb1 {[%clk 0:01:21.9]} 22. Rxe7 {[%clk 0:01:28.4]}
22... Bxa2 {[%clk 0:01:18.4]} 23. Bb7 {[%clk 0:01:21.7]} 23... Rce8 {[%clk
0:01:09.9]} 24. Ba3 {[%clk 0:01:11]} 24... Rxe7 {[%clk 0:00:52.6]} 25. Bxe7
{[%clk 0:01:11.9]} 25... Rb8 {[%clk 0:00:52.8]} 26. Bxf6 {[%clk 0:01:00.6]}
26... Rxb7 {[%clk 0:00:52.4]} 27. Ra1 {[%clk 0:01:01.3]} 27... Bb3 {[%clk
0:00:45.8]} 28. Rxa6 {[%clk 0:01:02.2]} 28... Rb8 {[%clk 0:00:45.8]} 29. Be5
{[%clk 0:00:45.7]} 29... Rc8 {[%clk 0:00:42]} 30. Rxb6 {[%clk 0:00:45.6]} 30...
Bc2 {[%clk 0:00:27]} 31. d5 {[%clk 0:00:42.8]} 31... Bf5 {[%clk 0:00:26.8]} 32.
Bc3 {[%clk 0:00:39.5]} 32... Kf8 {[%clk 0:00:23.5]} 33. f3 {[%clk 0:00:38.9]}
33... Ke8 {[%clk 0:00:20.5]} 34. g4 {[%clk 0:00:38.6]} 34... Bd7 {[%clk
0:00:16.8]} 35. Kf2 {[%clk 0:00:38]} 35... Rc5 {[%clk 0:00:16.9]} 36. Bb4 {[%clk
0:00:25.4]} 36... Rb5 {[%clk 0:00:14.3]} 37. Rxb5 {[%clk 0:00:23.5]} 37... Bxb5
{[%clk 0:00:15.2]} 38. Ke3 {[%clk 0:00:24]} 38... Kd7 {[%clk 0:00:13.4]} 39. Kd4
{[%clk 0:00:23.7]} 39... Ba6 {[%clk 0:00:09.3]} 40. Ke5 {[%clk 0:00:22.5]} 40...
h5 {[%clk 0:00:07.3]} 41. gxh5 {[%clk 0:00:18.4]} 41... gxh5 {[%clk 0:00:08.2]}
42. Kf6 {[%clk 0:00:18.6]} 42... Bb7 {[%clk 0:00:07.9]} 43. d6 {[%clk
0:00:15.2]} 43... h4 {[%clk 0:00:05.4]} 44. Kxf7 {[%clk 0:00:14.6]} 44... Bxf3
{[%clk 0:00:05.1]} 45. Be1 {[%clk 0:00:08.2]} 45... Bxg2 {[%clk 0:00:04.3]} 46.
Bxh4 {[%clk 0:00:08.8]} 46... c3 {[%clk 0:00:05]} 47. Bg5 {[%clk 0:00:08.9]}
47... c2 {[%clk 0:00:05.5]} 48. Kf6 {[%clk 0:00:08.5]} 48... Kxd6 {[%clk
0:00:04.6]} 49. Bc1 {[%clk 0:00:08.2]} 49... Kd5 {[%clk 0:00:05]} 50. Kf5 {[%clk
0:00:08.5]} 50... Kc4 {[%clk 0:00:05.6]} 51. Kf4 {[%clk 0:00:09.4]} 51... Kb3
{[%clk 0:00:06.2]} 52. Ke3 {[%clk 0:00:09.7]} 52... Ka2 {[%clk 0:00:06.9]} 53.
Kd2 {[%clk 0:00:09.5]} 53... Kb1 {[%clk 0:00:07.8]} 54. Ba3 {[%clk 0:00:09.5]}
54... c1=Q+ {[%clk 0:00:07.6]} 55. Bxc1 {[%clk 0:00:09.7]} 1/2-1/2

[Event "Early-Titled-Tuesday-Blitz-September-26-2023"]
[Site "Chess.com"]
[Date "2023.09.26"]
[Round "9"]
[White "Alenzer"]
[Black "Darius321"]
[Result "0-1"]
[WhiteElo "2114"]
[BlackElo "2339"]
[TimeControl "180+1"]
[EndTime "9:46:19 PDT"]
[Termination "Darius321 won on time"]

1. e4 {[%clk 0:02:59.1]} 1... c5 {[%clk 0:02:57.9]} 2. Nf3 {[%clk 0:02:57.1]}
2... g6 {[%clk 0:02:57]} 3. d4 {[%clk 0:02:55.3]} 3... cxd4 {[%clk 0:02:57.9]}
4. Nxd4 {[%clk 0:02:47.5]} 4... Bg7 {[%clk 0:02:57.6]} 5. c4 {[%clk 0:02:43.8]}
5... Nc6 {[%clk 0:02:55.2]} 6. Nc2 {[%clk 0:02:43.6]} 6... Nf6 {[%clk
0:02:53.9]} 7. Nc3 {[%clk 0:02:43.7]} 7... O-O {[%clk 0:02:52]} 8. Be2 {[%clk
0:02:37.8]} 8... b6 {[%clk 0:02:39.5]} 9. Bg5 {[%clk 0:02:28.8]} 9... Bb7 {[%clk
0:02:37.4]} 10. O-O {[%clk 0:02:27.1]} 10... d6 {[%clk 0:02:33.6]} 11. Qd2
{[%clk 0:02:26.9]} 11... Qb8 {[%clk 0:02:27.3]} 12. Rac1 {[%clk 0:02:09.5]}
12... Rd8 {[%clk 0:02:26.9]} 13. b4 {[%clk 0:02:05.3]} 13... Rd7 {[%clk
0:02:26.3]} 14. Nd5 {[%clk 0:02:02.7]} 14... Nxe4 {[%clk 0:02:13.6]} 15. Qf4
{[%clk 0:01:55.3]} 15... Nxg5 {[%clk 0:02:10.7]} 16. Qxg5 {[%clk 0:01:55.6]}
16... Qd8 {[%clk 0:02:03.4]} 17. Qe3 {[%clk 0:01:30.4]} 17... e6 {[%clk
0:02:01]} 18. Nf4 {[%clk 0:01:28.4]} 18... Rc8 {[%clk 0:01:58.5]} 19. Rfd1
{[%clk 0:01:26.4]} 19... Ne5 {[%clk 0:01:49.9]} 20. Nd4 {[%clk 0:01:16.5]} 20...
a6 {[%clk 0:01:17.5]} 21. h3 {[%clk 0:01:00.6]} 21... Rdc7 {[%clk 0:01:15.9]}
22. Nfxe6 {[%clk 0:00:54.1]} 22... fxe6 {[%clk 0:01:03.6]} 23. Nxe6 {[%clk
0:00:53]} 23... Qf6 {[%clk 0:00:56]} 24. Nxc7 {[%clk 0:00:51.1]} 24... Rxc7
{[%clk 0:00:56.9]} 25. f4 {[%clk 0:00:47.9]} 25... Nc6 {[%clk 0:00:48.3]} 26.
Qe8+ {[%clk 0:00:42.9]} 26... Qf8 {[%clk 0:00:42.2]} 27. Qe6+ {[%clk 0:00:39.2]}
27... Kh8 {[%clk 0:00:36.3]} 28. Qxd6 {[%clk 0:00:33.5]} 28... Qxd6 {[%clk
0:00:30.5]} 29. Rxd6 {[%clk 0:00:33.4]} 29... Bf8 {[%clk 0:00:29]} 30. Re6
{[%clk 0:00:24]} 30... Bxb4 {[%clk 0:00:28.8]} 31. Bf3 {[%clk 0:00:18.8]} 31...
Kg7 {[%clk 0:00:23.9]} 32. Rce1 {[%clk 0:00:18]} 32... Nd4 {[%clk 0:00:17.5]}
33. Bxb7 {[%clk 0:00:15.5]} 33... Nxe6 {[%clk 0:00:15.2]} 34. Rxe6 {[%clk
0:00:13.6]} 34... Rxb7 {[%clk 0:00:14.9]} 35. Rc6 {[%clk 0:00:13.8]} 35... Bc5+
{[%clk 0:00:15]} 36. Kf1 {[%clk 0:00:13.7]} 36... Kf7 {[%clk 0:00:15.2]} 37. Ke2
{[%clk 0:00:14]} 37... Rd7 {[%clk 0:00:14.8]} 38. Rc8 {[%clk 0:00:13.6]} 38...
Re7+ {[%clk 0:00:14.2]} 39. Kf3 {[%clk 0:00:12.3]} 39... Re3+ {[%clk 0:00:13.8]}
40. Kg4 {[%clk 0:00:13]} 40... Ra3 {[%clk 0:00:13.4]} 41. Kg5 {[%clk 0:00:09.8]}
41... Rg3+ {[%clk 0:00:12]} 42. Kh6 {[%clk 0:00:10.4]} 42... Rxg2 {[%clk
0:00:12.2]} 43. Rc7+ {[%clk 0:00:10.2]} 43... Kf6 {[%clk 0:00:11.8]} 44. Kxh7
{[%clk 0:00:07.9]} 44... Rh2 {[%clk 0:00:11]} 45. Kg8 {[%clk 0:00:04.3]} 45...
Rxh3 {[%clk 0:00:10.6]} 46. Rc6+ {[%clk 0:00:03.4]} 46... Kf5 {[%clk 0:00:10.5]}
47. Rc7 {[%clk 0:00:02.5]} 47... Rg3 {[%clk 0:00:09.5]} 48. Rf7+ {[%clk
0:00:02.2]} 48... Ke6 {[%clk 0:00:09.2]} 49. Kg7 {[%clk 0:00:02.3]} 49... Rg4
{[%clk 0:00:08.3]} 0-1

[Event "Early-Titled-Tuesday-Blitz-September-26-2023"]
[Site "Chess.com"]
[Date "2023.09.26"]
[Round "9"]
[White "Austen48"]
[Black "stratacticos"]
[Result "1-0"]
[WhiteElo "2281"]
[BlackElo "1794"]
[TimeControl "180+1"]
[EndTime "9:46:21 PDT"]
[Termination "Austen48 won on time"]

1. d4 {[%clk 0:03:00.9]} 1... Nf6 {[%clk 0:02:59]} 2. c4 {[%clk 0:03:00.6]} 2...
c5 {[%clk 0:02:58.5]} 3. d5 {[%clk 0:03:00.1]} 3... b5 {[%clk 0:02:52.9]} 4.
cxb5 {[%clk 0:02:59.7]} 4... a6 {[%clk 0:02:52.5]} 5. bxa6 {[%clk 0:02:53.8]}
5... e6 {[%clk 0:02:52.2]} 6. Nc3 {[%clk 0:02:43.2]} 6... exd5 {[%clk
0:02:51.7]} 7. Nxd5 {[%clk 0:02:42.3]} 7... Nxd5 {[%clk 0:02:51.5]} 8. Qxd5
{[%clk 0:02:41.6]} 8... Nc6 {[%clk 0:02:52.4]} 9. e4 {[%clk 0:02:30.9]} 9... Be7
{[%clk 0:02:51.7]} 10. Bc4 {[%clk 0:02:19.8]} 10... O-O {[%clk 0:02:48.1]} 11.
Qd1 {[%clk 0:02:15.3]} 11... Bxa6 {[%clk 0:02:42.1]} 12. Bxa6 {[%clk 0:02:14.5]}
12... Qa5+ {[%clk 0:02:41.6]} 13. Bd2 {[%clk 0:02:11.7]} 13... Qxa6 {[%clk
0:02:41.3]} 14. Ne2 {[%clk 0:02:12.4]} 14... Bf6 {[%clk 0:02:29]} 15. Bc3 {[%clk
0:02:10.8]} 15... Nd4 {[%clk 0:02:12.8]} 16. Bxd4 {[%clk 0:02:06.8]} 16... cxd4
{[%clk 0:02:12.4]} 17. O-O {[%clk 0:02:04.8]} 17... Qb6 {[%clk 0:02:09.5]} 18.
Qd2 {[%clk 0:01:58.6]} 18... Rfe8 {[%clk 0:02:05.1]} 19. Ng3 {[%clk 0:01:52.2]}
19... Rab8 {[%clk 0:01:54.1]} 20. b3 {[%clk 0:01:51.1]} 20... Qc5 {[%clk
0:01:45.7]} 21. Rac1 {[%clk 0:01:47.5]} 21... Qe5 {[%clk 0:01:44.4]} 22. f4
{[%clk 0:01:44.2]} 22... Qb5 {[%clk 0:01:43.9]} 23. Rc4 {[%clk 0:01:38]} 23...
d5 {[%clk 0:01:40.4]} 24. exd5 {[%clk 0:01:35.7]} 24... Qxd5 {[%clk 0:01:40.1]}
25. Rfc1 {[%clk 0:01:30.2]} 25... h5 {[%clk 0:01:37.9]} 26. Rc5 {[%clk
0:01:26.8]} 26... Qe6 {[%clk 0:01:11.1]} 27. Nxh5 {[%clk 0:01:22.2]} 27... Be7
{[%clk 0:01:03.6]} 28. Re5 {[%clk 0:01:19.7]} 28... Qb6 {[%clk 0:00:52.4]} 29.
Qd3 {[%clk 0:01:14.6]} 29... Rbc8 {[%clk 0:00:48.9]} 30. Rxc8 {[%clk 0:01:08.2]}
30... Rxc8 {[%clk 0:00:48.2]} 31. Rxe7 {[%clk 0:01:02]} 31... g6 {[%clk
0:00:42.8]} 32. Ng3 {[%clk 0:00:55.4]} 32... Rc3 {[%clk 0:00:36.9]} 33. Re8+
{[%clk 0:00:39.7]} 33... Kg7 {[%clk 0:00:36.2]} 34. Qd2 {[%clk 0:00:17.5]} 34...
d3+ {[%clk 0:00:31.2]} 35. Qf2 {[%clk 0:00:17]} 35... Rc1+ {[%clk 0:00:28.8]}
36. Nf1 {[%clk 0:00:17]} 36... Qxf2+ {[%clk 0:00:25.6]} 37. Kxf2 {[%clk
0:00:16.6]} 37... Rc2+ {[%clk 0:00:25.8]} 38. Kf3 {[%clk 0:00:14.2]} 38... Rxa2
{[%clk 0:00:25.3]} 39. Rd8 {[%clk 0:00:13.6]} 39... d2 {[%clk 0:00:17.7]} 40.
Nxd2 {[%clk 0:00:12.8]} 40... Rb2 {[%clk 0:00:17.2]} 41. Rd4 {[%clk 0:00:11.3]}
41... Kf6 {[%clk 0:00:15.2]} 42. b4 {[%clk 0:00:11.5]} 42... Ke6 {[%clk
0:00:14]} 43. h3 {[%clk 0:00:11.8]} 43... f5 {[%clk 0:00:13.4]} 44. g4 {[%clk
0:00:12.1]} 44... fxg4+ {[%clk 0:00:12.9]} 45. hxg4 {[%clk 0:00:12.4]} 45... Rc2
{[%clk 0:00:12.2]} 46. Ke3 {[%clk 0:00:12.2]} 46... Rc3+ {[%clk 0:00:11.7]} 47.
Ke4 {[%clk 0:00:12.6]} 47... Rg3 {[%clk 0:00:09.6]} 48. f5+ {[%clk 0:00:13.1]}
48... gxf5+ {[%clk 0:00:09]} 49. gxf5+ {[%clk 0:00:12.8]} 49... Kf6 {[%clk
0:00:08.3]} 50. Rd6+ {[%clk 0:00:12.6]} 50... Kf7 {[%clk 0:00:08.4]} 51. Ke5
{[%clk 0:00:12.2]} 51... Re3+ {[%clk 0:00:05.7]} 52. Ne4 {[%clk 0:00:12.3]}
52... Rb3 {[%clk 0:00:02.7]} 53. Rb6 {[%clk 0:00:12.8]} 1-0

[Event "Early-Titled-Tuesday-Blitz-September-26-2023"]
[Site "Chess.com"]
[Date "2023.09.26"]
[Round "9"]
[White "ContrVersia"]
[Black "marcodobrikov"]
[Result "1-0"]
[WhiteElo "2882"]
[BlackElo "2649"]
[TimeControl "180+1"]
[EndTime "9:46:25 PDT"]
[Termination "ContrVersia won by checkmate"]

1. Nf3 {[%clk 0:03:00.9]} 1... Nf6 {[%clk 0:02:57.9]} 2. c4 {[%clk 0:03:00.8]}
2... c5 {[%clk 0:02:55]} 3. b3 {[%clk 0:03:00]} 3... Nc6 {[%clk 0:02:54.8]} 4.
Bb2 {[%clk 0:03:00.1]} 4... e6 {[%clk 0:02:55.4]} 5. g3 {[%clk 0:03:00.1]} 5...
Be7 {[%clk 0:02:56.3]} 6. Bg2 {[%clk 0:03:00.3]} 6... O-O {[%clk 0:02:52]} 7.
O-O {[%clk 0:02:59.4]} 7... b6 {[%clk 0:02:51.3]} 8. e3 {[%clk 0:02:39.1]} 8...
Bb7 {[%clk 0:02:48.2]} 9. Nc3 {[%clk 0:02:39.1]} 9... Rc8 {[%clk 0:02:48.2]} 10.
Rc1 {[%clk 0:02:29.2]} 10... d5 {[%clk 0:02:40.1]} 11. cxd5 {[%clk 0:02:28.8]}
11... exd5 {[%clk 0:02:39.7]} 12. d4 {[%clk 0:02:28.7]} 12... c4 {[%clk
0:02:40]} 13. bxc4 {[%clk 0:02:26]} 13... dxc4 {[%clk 0:02:40.4]} 14. Ne5 {[%clk
0:02:25.8]} 14... Na5 {[%clk 0:02:35.8]} 15. Bxb7 {[%clk 0:02:24.2]} 15... Nxb7
{[%clk 0:02:36.7]} 16. Nb5 {[%clk 0:02:17]} 16... Qe8 {[%clk 0:01:45.7]} 17.
Nxa7 {[%clk 0:02:06]} 17... Ra8 {[%clk 0:01:45.2]} 18. Nac6 {[%clk 0:02:05.9]}
18... Rxa2 {[%clk 0:01:45.6]} 19. Nxe7+ {[%clk 0:01:53.5]} 19... Qxe7 {[%clk
0:01:45.5]} 20. Nxc4 {[%clk 0:01:54.4]} 20... Qb4 {[%clk 0:01:06.5]} 21. Qd3
{[%clk 0:01:15.4]} 21... Rxb2 {[%clk 0:01:02.1]} 22. Nxb2 {[%clk 0:01:16.3]}
22... Qxb2 {[%clk 0:01:02.7]} 23. Rb1 {[%clk 0:01:16.9]} 23... Qa2 {[%clk
0:01:03.1]} 24. Rxb6 {[%clk 0:01:17]} 24... Nd8 {[%clk 0:01:00]} 25. Rfb1 {[%clk
0:01:03.7]} 25... Ne6 {[%clk 0:00:58.6]} 26. Qb3 {[%clk 0:00:43.8]} 26... Qe2
{[%clk 0:00:52.7]} 27. Qd1 {[%clk 0:00:43.2]} 27... Qa2 {[%clk 0:00:51.3]} 28.
R1b2 {[%clk 0:00:33.1]} 28... Qd5 {[%clk 0:00:47.1]} 29. R6b5 {[%clk 0:00:33.4]}
29... Qe4 {[%clk 0:00:45]} 30. Re5 {[%clk 0:00:30.9]} 30... Qg6 {[%clk 0:00:42]}
31. Qf3 {[%clk 0:00:18.8]} 31... h5 {[%clk 0:00:39.2]} 32. Qf5 {[%clk
0:00:14.5]} 32... Qh6 {[%clk 0:00:38.9]} 33. d5 {[%clk 0:00:13.8]} 33... Nc5
{[%clk 0:00:35.2]} 34. d6 {[%clk 0:00:12.9]} 34... Ncd7 {[%clk 0:00:35.4]} 35.
Re7 {[%clk 0:00:12.5]} 35... h4 {[%clk 0:00:32.2]} 36. Rxd7 {[%clk 0:00:10]}
36... Nxd7 {[%clk 0:00:30.8]} 37. Qxd7 {[%clk 0:00:10.9]} 37... Ra8 {[%clk
0:00:29.6]} 38. Kg2 {[%clk 0:00:08.6]} 38... Ra6 {[%clk 0:00:24.2]} 39. Qc8+
{[%clk 0:00:06.7]} 39... Kh7 {[%clk 0:00:24.5]} 40. Qxa6 {[%clk 0:00:06.7]}
40... h3+ {[%clk 0:00:25.4]} 41. Kg1 {[%clk 0:00:06.6]} 41... Qf6 {[%clk
0:00:25.6]} 42. Rb1 {[%clk 0:00:05]} 42... Qf3 {[%clk 0:00:25.5]} 43. Qf1 {[%clk
0:00:05.7]} 43... Qf5 {[%clk 0:00:21.2]} 44. Rd1 {[%clk 0:00:04]} 44... Qd7
{[%clk 0:00:21.5]} 45. Qd3+ {[%clk 0:00:03.8]} 45... g6 {[%clk 0:00:22.4]} 46.
e4 {[%clk 0:00:04.3]} 46... Kg7 {[%clk 0:00:23.3]} 47. Qd4+ {[%clk 0:00:04.4]}
47... f6 {[%clk 0:00:24.2]} 48. e5 {[%clk 0:00:04.5]} 48... fxe5 {[%clk
0:00:22.8]} 49. Qxe5+ {[%clk 0:00:05.4]} 49... Kh6 {[%clk 0:00:23.7]} 50. Qe3+
{[%clk 0:00:05.4]} 50... g5 {[%clk 0:00:21.5]} 51. Qe4 {[%clk 0:00:04.8]} 51...
Qa4 {[%clk 0:00:21.4]} 52. Qxa4 {[%clk 0:00:04.5]} 52... g4 {[%clk 0:00:22]} 53.
Qf4+ {[%clk 0:00:04.2]} 53... Kh5 {[%clk 0:00:22.8]} 54. Rd5+ {[%clk 0:00:04.5]}
54... Kg6 {[%clk 0:00:23.4]} 55. Qxg4+ {[%clk 0:00:04.6]} 55... Kf7 {[%clk
0:00:24.3]} 56. Qf5+ {[%clk 0:00:04.6]} 56... Kg7 {[%clk 0:00:25.1]} 57. Re5
{[%clk 0:00:04.3]} 57... Kh6 {[%clk 0:00:26]} 58. Re6+ {[%clk 0:00:04.6]} 58...
Kg7 {[%clk 0:00:26.9]} 59. Rg6+ {[%clk 0:00:05]} 59... Kh7 {[%clk 0:00:27.5]}
60. Qh5# {[%clk 0:00:05.3]} 1-0